Workbook

Sheet Sheet1
B1: Exer. 8 - Simulação Automático
E2: Min | F2: Max
C3: Tempo Vida | E3: 2 | F3: 5
C4: Nº Acidentes/mês | E4: =1/12 -> 0.08333333333 | G4: Período Revisão (meses) | K4: 3
C5: Custo Peça | E5: 100 | G5: Intervalo mínimo Subst. Peça | K5: 1.5
C6: Custo/Inspecção/Ver | E6: 1000
C7: Custo/paragem | E7: 2000
B9: Tempo | C9: Tipo | D9: Subst. | E9: Prox. Inter. acidentes | G9: Prox | H9: Bom Func. Peça | J9: Prox. | K9: Próx. | L9: Próximo | M9: Tipo | N9: Nº | O9: Nº | P9: Nº | Q9: Nº
C10: Acontec. | D10: Peça? | E10: NPA | F10: Meses | G10: Acidente | H10: NPA | I10: Meses | J10: Avaria | K10: Revisão | L10: Acontec. | M10: Acontec. | N10: Peças | O10: Revis. | P10: Ava. | Q10: Ac.
B11: 0 | C11: Acidente | D11: Sim | E11: 0.588 | F11: =IF(E11="","",-1/$E$4*LN(E11)) -> 6.372339973 | G11: =+F11 -> 6.372339973 | H11: 0.072 | I11: =IF(H11="",0,$E$3+H11*($F$3-$E$3)) -> 2.216 | J11: =+I11 -> 2.216 | K11: =+$K$4 -> 3 | L11: =MIN(G11,J11,K11) -> 2.216 | M11: =IF(G11<K11,"Acidente",IF(I11<K11,"Avaria","Revisão")) -> Avaria | N11: =IF(D11="Sim",1,0) -> 1 | O11: =IF(C11="Revisão",1,0) -> 0 | P11: =IF(C11="Avaria",1,0) -> 0 | Q11: =IF(C11="Acidente",1,0) -> 1
B12: =+L11 -> 2.216 | C12: Avaria | D12: =IF(C12="Acidente","Sim",IF(C12="Avaria","Sim",IF(C12="Revisão",IF((B12-B11)>$K$5,"Sim","Não")))) -> Sim | E12: =IF(C12="Acidente", RAND(),"") ->  | G12: =IF(F12="",G11,+G11+F12) -> 6.372339973 | H12: 0.029 | I12: =IF(H12="",0,$E$3+H12*($F$3-$E$3)) -> 2.087 | J12: =IF(D12="Sim",B12+I12,IF(J11>K11,J11,B12+I12)) -> 4.303 | K12: =IF(B12<K11,K11,K11+$K$4) -> 3 | L12: 3 | M12: =IF(G12<=L12,"Acidente",IF(J12<K12,"Avaria","Revisão")) -> Revisão | N12: =IF(D12="Sim",1,0) -> 1 | O12: =IF(C12="Revisão",1,0) -> 0 | P12: =IF(C12="Avaria",1,0) -> 1 | Q12: =IF(C12="Acidente",1,0) -> 0
B13: 3 | C13: Revisão | D13: =IF(C13="Acidente","Sim",IF(C13="Avaria","Sim",IF(C13="Revisão",IF((B13-B12)>$K$5,"Sim","Não")))) -> Não | G13: 6.372339973 | H13: =IF(D13="Sim",RAND(),IF(J12>L12,"",RAND())) ->  | I13: =IF(H13="",0,$E$3+H13*($F$3-$E$3)) -> 0 | J13: =IF(D13="Sim",B13+I13,IF(J12>K12,J12,B13+I13)) -> 4.303 | K13: 6 | L13: 4.303 | M13: Avaria | N13: 0 | O13: 1 | P13: 0 | Q13: 0
B14: 4.303 | C14: Avaria | D14: Sim | G14: 6.372339973 | H14: 0.634 | I14: 3.902 | J14: 8.205 | K14: 6 | L14: 6 | M14: Revisão | N14: 1 | O14: 0 | P14: 1 | Q14: 0
B15: 6 | C15: Revisão | D15: Sim | G15: 6.372339973 | H15: 0.123 | I15: 2.369 | J15: 8.369 | K15: 9 | L15: 6.372339973 | M15: Acidente | N15: 1 | O15: 1 | P15: 0 | Q15: 0
B16: 6.372339973 | C16: Acidente | D16: Sim | E16: 0.457 | F16: 9.396862657 | G16: 15.76920263 | H16: 0.699 | I16: 4.097 | J16: 10.46933997 | K16: 9 | L16: 9 | M16: Revisão | N16: 1 | O16: 0 | P16: 0 | Q16: 1
B17: 9 | C17: Revisão | D17: Sim | G17: 15.76920263 | H17: 0.761 | I17: 4.283 | J17: 13.283 | K17: 12 | L17: 12 | M17: Revisão | N17: 1 | O17: 1 | P17: 0 | Q17: 0
B18: 12 | C18: Revisão | D18: Sim | G18: 15.76920263 | H18: 0.717 | I18: 4.151 | J18: 16.151 | K18: 15 | L18: 15 | M18: =IF(G18<(L18+0.09),"Acidente",IF(J18<K18,"Avaria","Revisão")) -> Revisão | N18: 1 | O18: 1 | P18: 0 | Q18: 0
N19: =SUM(N3:N18) -> 7 | O19: =SUM(O3:O18) -> 4 | P19: =SUM(P3:P18) -> 2 | Q19: =SUM(Q3:Q18) -> 2
E20: Total | F20: Mês
B21: Custo das peças | E21: =N19*E5 -> 700 | F21: =+E21/$B$18 -> 58.33333333
B22: Custo das revisões | E22: =+O19*E6 -> 4000 | F22: =+E22/$B$18 -> 333.3333333
B23: Custos De paragens | E23: =+E7*(P19+Q19) -> 8000 | F23: =+E23/$B$18 -> 666.6666667
B24: Custo Total | E24: =+E21+E22+E23 -> 12700 | F24: =+E24/$B$18 -> 1058.333333

Sheet Sheet2

Sheet Sheet3
